[Event "Titled Tuesday Blitz July 13 2021"]
[White "Gracia Alvarez, Gerardo Antonio"]
[Black "Costachi, Mihnea"]
[WhiteFideId "5109124"]
[BlackFideId "1217518"]
[WhiteElo "2148"]
[BlackElo "2482"]
[Result "0-1"]
[Round "07"]
[TimeControl "180+1"]
[Date "2021.07.13"]
[WhiteClock "0:00:56"]
[BlackClock "0:02:43"]

1. e4 {[%clk 0:03:00]}  c5 {[%clk 0:03:00]} 2. Nf3 {[%clk 0:03:00]}  Nc6 {[%clk 0:03:00]} 3. d4 {[%clk 0:03:01]}  cxd4 {[%clk 0:03:01]} 4. Nxd4 {[%clk 0:03:02]}  Nf6 {[%clk 0:03:02]} 5. Nc3 {[%clk 0:03:02]}  d6 {[%clk 0:03:02]} 6. Be2 {[%clk 0:03:01]}  a6 {[%clk 0:03:03]} 7. O-O {[%clk 0:02:58]}  e6 {[%clk 0:03:03]} 8. Be3 {[%clk 0:02:57]}  Be7 {[%clk 0:03:03]} 9. f4 {[%clk 0:02:57]}  O-O {[%clk 0:03:03]} 10. Qe1 {[%clk 0:02:55]}  Nxd4 {[%clk 0:03:02]} 11. Bxd4 {[%clk 0:02:55]}  b5 {[%clk 0:03:03]} 12. a3 {[%clk 0:02:54]}  Bb7 {[%clk 0:03:04]} 13. Qg3 {[%clk 0:02:53]}  g6 {[%clk 0:03:02]} 14. Bd3 {[%clk 0:02:44]}  Nh5 {[%clk 0:03:01]} 15. Qh3 {[%clk 0:02:37]}  Bf6 {[%clk 0:03:02]} 16. Bxf6 {[%clk 0:02:21]}  Qxf6 {[%clk 0:03:03]} 17. f5 {[%clk 0:02:04]}  exf5 {[%clk 0:02:58]} 18. exf5 {[%clk 0:01:54]}  Qd4+ {[%clk 0:02:58]} 19. Kh1 {[%clk 0:01:54]}  Nf4 {[%clk 0:02:59]} 20. Rxf4 {[%clk 0:01:55]}  Qxf4 {[%clk 0:02:59]} 21. Rf1 {[%clk 0:01:52]}  Qg5 {[%clk 0:02:59]} 22. Be4 {[%clk 0:01:43]}  d5 {[%clk 0:02:48]} 23. Bxd5 {[%clk 0:01:09]}  Bxd5 {[%clk 0:02:48]} 24. Nxd5 {[%clk 0:01:10]}  Rad8 {[%clk 0:02:47]} 25. Ne7+ {[%clk 0:00:56]}  Qxe7 {[%clk 0:02:42]} 26. f6 {[%clk 0:00:56]}  Qe2 {[%clk 0:02:43]} 0-1


[Site "https://www.chess.com"]

[Event "Titled Tuesday Blitz July 13 2021"]
[White "Hebden, Mark L"]
[Black "Darini, Pouria"]
[WhiteFideId "400084"]
[BlackFideId "12502200"]
[WhiteElo "2457"]
[BlackElo "2489"]
[Result "1/2-1/2"]
[Round "07"]
[TimeControl "180+1"]
[Date "2021.07.13"]
[WhiteClock "0:00:39"]
[BlackClock "0:00:14"]

1. d4 {[%clk 0:03:00]}  Nf6 {[%clk 0:02:59]} 2. Nf3 {[%clk 0:03:01]}  g6 {[%clk 0:02:59]} 3. g3 {[%clk 0:03:00]}  Bg7 {[%clk 0:02:57]} 4. Bg2 {[%clk 0:03:01]}  O-O {[%clk 0:02:57]} 5. O-O {[%clk 0:03:01]}  d5 {[%clk 0:02:56]} 6. c4 {[%clk 0:03:00]}  c6 {[%clk 0:02:53]} 7. b3 {[%clk 0:03:00]}  Bf5 {[%clk 0:02:42]} 8. Bb2 {[%clk 0:02:57]}  Nbd7 {[%clk 0:02:37]} 9. Nc3 {[%clk 0:02:54]}  Ne4 {[%clk 0:02:37]} 10. cxd5 {[%clk 0:02:47]}  Nxc3 {[%clk 0:02:38]} 11. Bxc3 {[%clk 0:02:46]}  cxd5 {[%clk 0:02:39]} 12. Nh4 {[%clk 0:02:45]}  Be6 {[%clk 0:02:32]} 13. Rc1 {[%clk 0:02:40]}  Rc8 {[%clk 0:02:28]} 14. Qd2 {[%clk 0:02:38]}  Nf6 {[%clk 0:02:26]} 15. f3 {[%clk 0:02:27]}  h6 {[%clk 0:02:26]} 16. Bh1 {[%clk 0:02:24]}  Qb6 {[%clk 0:02:06]} 17. Rfd1 {[%clk 0:02:23]}  Nd7 {[%clk 0:02:05]} 18. e3 {[%clk 0:02:20]}  Bf6 {[%clk 0:01:25]} 19. Ng2 {[%clk 0:02:19]}  g5 {[%clk 0:01:25]} 20. Ne1 {[%clk 0:02:17]}  Bf5 {[%clk 0:01:19]} 21. Nd3 {[%clk 0:02:03]}  Bxd3 {[%clk 0:01:19]} 22. Qxd3 {[%clk 0:02:02]}  Rc6 {[%clk 0:01:19]} 23. Bb2 {[%clk 0:02:01]}  Rfc8 {[%clk 0:01:19]} 24. Bg2 {[%clk 0:01:59]}  Rxc1 {[%clk 0:01:18]} 25. Rxc1 {[%clk 0:01:58]}  Rxc1+ {[%clk 0:01:17]} 26. Bxc1 {[%clk 0:01:59]}  e6 {[%clk 0:01:05]} 27. Qc3 {[%clk 0:01:48]}  Bd8 {[%clk 0:00:44]} 28. Bf1 {[%clk 0:01:45]}  Qc7 {[%clk 0:00:43]} 29. Qxc7 {[%clk 0:01:43]}  Bxc7 {[%clk 0:00:44]} 30. g4 {[%clk 0:01:41]}  Bd6 {[%clk 0:00:43]} 31. Bb5 {[%clk 0:01:39]}  Nb8 {[%clk 0:00:41]} 32. Kf1 {[%clk 0:01:40]}  a6 {[%clk 0:00:41]} 33. Bd3 {[%clk 0:01:39]}  Nc6 {[%clk 0:00:42]} 34. Ke2 {[%clk 0:01:37]}  Bxh2 {[%clk 0:00:42]} 35. Ba3 {[%clk 0:01:25]}  Bc7 {[%clk 0:00:42]} 36. Bb2 {[%clk 0:01:18]}  Bd6 {[%clk 0:00:37]} 37. a3 {[%clk 0:01:17]}  f6 {[%clk 0:00:35]} 38. b4 {[%clk 0:01:14]}  b5 {[%clk 0:00:34]} 39. e4 {[%clk 0:01:13]}  Ne7 {[%clk 0:00:31]} 40. Kd2 {[%clk 0:01:02]}  Kf7 {[%clk 0:00:30]} 41. Bc3 {[%clk 0:01:01]}  e5 {[%clk 0:00:16]} 42. a4 {[%clk 0:00:58]}  exd4 {[%clk 0:00:16]} 43. Bxd4 {[%clk 0:00:58]}  Bxb4+ {[%clk 0:00:17]} 44. Ke3 {[%clk 0:00:57]}  bxa4 {[%clk 0:00:17]} 45. exd5 {[%clk 0:00:55]}  Nxd5+ {[%clk 0:00:17]} 46. Ke4 {[%clk 0:00:55]}  Nf4 {[%clk 0:00:08]} 47. Bxa6 {[%clk 0:00:53]}  Kg6 {[%clk 0:00:05]} 48. Bc4 {[%clk 0:00:52]}  h5 {[%clk 0:00:05]} 49. Be3 {[%clk 0:00:50]}  Ng2 {[%clk 0:00:03]} 50. Bc1 {[%clk 0:00:47]}  h4 {[%clk 0:00:03]} 51. f4 {[%clk 0:00:43]}  gxf4 {[%clk 0:00:02]} 52. Bxf4 {[%clk 0:00:42]}  Nxf4 {[%clk 0:00:03]} 53. Kxf4 {[%clk 0:00:42]}  Bd6+ {[%clk 0:00:03]} 54. Kf3 {[%clk 0:00:42]}  a3 {[%clk 0:00:04]} 55. Be6 {[%clk 0:00:40]}  Kg5 {[%clk 0:00:04]} 56. Kg2 {[%clk 0:00:40]}  Be5 {[%clk 0:00:05]} 57. Kh3 {[%clk 0:00:39]}  Bg3 {[%clk 0:00:06]} 58. Ba2 {[%clk 0:00:38]}  Kf4 {[%clk 0:00:06]} 59. Be6 {[%clk 0:00:36]}  Ke3 {[%clk 0:00:07]} 60. Kg2 {[%clk 0:00:30]}  Ke4 {[%clk 0:00:07]} 61. Kh3 {[%clk 0:00:30]}  Kf4 {[%clk 0:00:06]} 62. Ba2 {[%clk 0:00:29]}  Ke5 {[%clk 0:00:06]} 63. Kg2 {[%clk 0:00:29]}  Ke4 {[%clk 0:00:06]} 64. Kh3 {[%clk 0:00:29]}  Kd3 {[%clk 0:00:06]} 65. Kg2 {[%clk 0:00:29]}  Kc3 {[%clk 0:00:07]} 66. Kf3 {[%clk 0:00:29]}  Kb2 {[%clk 0:00:07]} 67. Be6 {[%clk 0:00:30]}  a2 {[%clk 0:00:06]} 68. Bxa2 {[%clk 0:00:30]}  Kxa2 {[%clk 0:00:07]} 69. g5 {[%clk 0:00:30]}  fxg5 {[%clk 0:00:07]} 70. Kg4 {[%clk 0:00:30]}  Bf4 {[%clk 0:00:08]} 71. Kh3 {[%clk 0:00:30]}  Kb3 {[%clk 0:00:09]} 72. Kg4 {[%clk 0:00:31]}  Kc4 {[%clk 0:00:10]} 73. Kf3 {[%clk 0:00:32]}  Kd4 {[%clk 0:00:11]} 74. Kg4 {[%clk 0:00:33]}  Ke5 {[%clk 0:00:12]} 75. Kh3 {[%clk 0:00:33]}  Kf5 {[%clk 0:00:11]} 76. Kg2 {[%clk 0:00:34]}  g4 {[%clk 0:00:12]} 77. Kh1 {[%clk 0:00:35]}  h3 {[%clk 0:00:13]} 78. Kg1 {[%clk 0:00:36]}  g3 {[%clk 0:00:13]} 79. Kh1 {[%clk 0:00:37]}  Ke4 {[%clk 0:00:13]} 80. Kg1 {[%clk 0:00:38]}  Kf3 {[%clk 0:00:14]} 81. Kh1 {[%clk 0:00:39]}  Be3 {[%clk 0:00:14]} 1/2-1/2


[Site "https://www.chess.com"]

[Event "Titled Tuesday Blitz July 13 2021"]
[White "Holt, Conrad"]
[Black "Mirzoev, Azer"]
[WhiteFideId "2034387"]
[BlackFideId "13400304"]
[WhiteElo "2586"]
[BlackElo "2525"]
[Result "1-0"]
[Round "07"]
[TimeControl "180+1"]
[Date "2021.07.13"]
[WhiteClock "0:00:06"]
[BlackClock "0:00:01"]

1. d4 {[%clk 0:03:00]}  d5 {[%clk 0:03:00]} 2. c4 {[%clk 0:03:01]}  c6 {[%clk 0:03:01]} 3. Nc3 {[%clk 0:03:01]}  Nf6 {[%clk 0:03:01]} 4. e3 {[%clk 0:02:57]}  a6 {[%clk 0:03:01]} 5. b3 {[%clk 0:02:54]}  Bf5 {[%clk 0:02:59]} 6. Bd3 {[%clk 0:02:52]}  Bg6 {[%clk 0:02:58]} 7. Nge2 {[%clk 0:02:47]}  e6 {[%clk 0:02:58]} 8. O-O {[%clk 0:02:46]}  Nbd7 {[%clk 0:02:58]} 9. Nf4 {[%clk 0:02:46]}  Bxd3 {[%clk 0:02:57]} 10. Qxd3 {[%clk 0:02:45]}  Be7 {[%clk 0:02:56]} 11. e4 {[%clk 0:02:42]}  dxe4 {[%clk 0:02:56]} 12. Nxe4 {[%clk 0:02:42]}  Nxe4 {[%clk 0:02:56]} 13. Qxe4 {[%clk 0:02:42]}  O-O {[%clk 0:02:56]} 14. Be3 {[%clk 0:02:34]}  Nf6 {[%clk 0:02:54]} 15. Qf3 {[%clk 0:02:33]}  Qa5 {[%clk 0:02:44]} 16. Rfd1 {[%clk 0:02:32]}  Rad8 {[%clk 0:02:42]} 17. h3 {[%clk 0:02:30]}  Qf5 {[%clk 0:02:40]} 18. a4 {[%clk 0:02:19]}  h6 {[%clk 0:02:37]} 19. a5 {[%clk 0:02:15]}  Rfe8 {[%clk 0:02:37]} 20. g4 {[%clk 0:02:14]}  Qe4 {[%clk 0:02:35]} 21. Kg2 {[%clk 0:02:13]}  Bd6 {[%clk 0:02:26]} 22. Qxe4 {[%clk 0:02:12]}  Nxe4 {[%clk 0:02:25]} 23. Ne2 {[%clk 0:02:11]}  Be7 {[%clk 0:02:17]} 24. f3 {[%clk 0:02:05]}  Nf6 {[%clk 0:02:16]} 25. Nf4 {[%clk 0:01:52]}  Nd7 {[%clk 0:02:14]} 26. Nd3 {[%clk 0:01:51]}  Bd6 {[%clk 0:02:13]} 27. f4 {[%clk 0:01:48]}  f5 {[%clk 0:02:06]} 28. Ne5 {[%clk 0:01:35]}  fxg4 {[%clk 0:02:01]} 29. hxg4 {[%clk 0:01:32]}  Bc7 {[%clk 0:01:50]} 30. Nxd7 {[%clk 0:01:25]}  Rxd7 {[%clk 0:01:50]} 31. Kf3 {[%clk 0:01:25]}  Rf8 {[%clk 0:01:48]} 32. Ke4 {[%clk 0:01:25]}  Rdf7 {[%clk 0:01:48]} 33. Rf1 {[%clk 0:01:03]}  g5 {[%clk 0:01:48]} 34. Rh1 {[%clk 0:00:57]}  gxf4 {[%clk 0:01:19]} 35. Bd2 {[%clk 0:00:56]}  Rf6 {[%clk 0:01:14]} 36. Rh5 {[%clk 0:00:55]}  Rg6 {[%clk 0:01:13]} 37. Kf3 {[%clk 0:00:55]}  Rd8 {[%clk 0:01:09]} 38. Bc3 {[%clk 0:00:20]}  e5 {[%clk 0:01:09]} 39. Rd1 {[%clk 0:00:20]}  exd4 {[%clk 0:01:05]} 40. Rxd4 {[%clk 0:00:21]}  Rxd4 {[%clk 0:01:05]} 41. Bxd4 {[%clk 0:00:22]}  Kf7 {[%clk 0:01:02]} 42. b4 {[%clk 0:00:20]}  Bd6 {[%clk 0:00:55]} 43. b5 {[%clk 0:00:19]}  Ke6 {[%clk 0:00:45]} 44. bxa6 {[%clk 0:00:17]}  bxa6 {[%clk 0:00:44]} 45. Rf5 {[%clk 0:00:17]}  Be7 {[%clk 0:00:40]} 46. Rxf4 {[%clk 0:00:14]}  Rg8 {[%clk 0:00:38]} 47. Re4+ {[%clk 0:00:12]}  Kd7 {[%clk 0:00:38]} 48. Be3 {[%clk 0:00:13]}  Bg5 {[%clk 0:00:34]} 49. Bb6 {[%clk 0:00:12]}  Rf8+ {[%clk 0:00:31]} 50. Ke2 {[%clk 0:00:12]}  Rf7 {[%clk 0:00:25]} 51. Rd4+ {[%clk 0:00:12]}  Ke6 {[%clk 0:00:25]} 52. Bc5 {[%clk 0:00:13]}  Rf4 {[%clk 0:00:21]} 53. Rd6+ {[%clk 0:00:13]}  Kf7 {[%clk 0:00:21]} 54. Kd3 {[%clk 0:00:13]}  Rxg4 {[%clk 0:00:18]} 55. Rxc6 {[%clk 0:00:13]}  Rg3+ {[%clk 0:00:18]} 56. Ke4 {[%clk 0:00:13]}  Rg4+ {[%clk 0:00:18]} 57. Kd5 {[%clk 0:00:14]}  h5 {[%clk 0:00:17]} 58. Rxa6 {[%clk 0:00:13]}  h4 {[%clk 0:00:17]} 59. Ra7+ {[%clk 0:00:08]}  Kg6 {[%clk 0:00:17]} 60. Bd6 {[%clk 0:00:08]}  h3 {[%clk 0:00:15]} 61. Ra8 {[%clk 0:00:08]}  Rg2 {[%clk 0:00:13]} 62. Rh8 {[%clk 0:00:06]}  Bh6 {[%clk 0:00:10]} 63. Rg8+ {[%clk 0:00:05]}  Kf7 {[%clk 0:00:09]} 64. Rxg2 {[%clk 0:00:04]}  hxg2 {[%clk 0:00:09]} 65. Bh2 {[%clk 0:00:05]}  Be3 {[%clk 0:00:08]} 66. a6 {[%clk 0:00:05]}  Ke8 {[%clk 0:00:07]} 67. c5 {[%clk 0:00:05]}  Bf4 {[%clk 0:00:05]} 68. a7 {[%clk 0:00:03]}  Bxh2 {[%clk 0:00:05]} 69. a8=Q+ {[%clk 0:00:03]}  Kf7 {[%clk 0:00:05]} 70. Qb7+ {[%clk 0:00:04]}  Kg6 {[%clk 0:00:02]} 71. Qb1+ {[%clk 0:00:04]}  Kg5 {[%clk 0:00:01]} 72. Qc1+ {[%clk 0:00:04]}  Kg4 {[%clk 0:00:01]} 73. Qd1+ {[%clk 0:00:04]}  Kg3 {[%clk 0:00:01]} 74. Qe1+ {[%clk 0:00:04]}  Kh3 {[%clk 0:00:01]} 75. c6 {[%clk 0:00:05]}  g1=Q {[%clk 0:00:01]} 76. Qxg1 {[%clk 0:00:05]}  Bxg1 {[%clk 0:00:01]} 77. c7 {[%clk 0:00:05]}  Bh2 {[%clk 0:00:01]} 78. c8=Q+ {[%clk 0:00:06]} 1-0


[Site "https://www.chess.com"]

[Event "Titled Tuesday Blitz July 13 2021"]
[White "Howell, David W L"]
[Black "Sjugirov, Sanan"]
[WhiteFideId "410608"]
[BlackFideId "4189302"]
[WhiteElo "2643"]
[BlackElo "2472"]
[Result "1/2-1/2"]
[Round "07"]
[TimeControl "180+1"]
[Date "2021.07.13"]
[WhiteClock "0:01:45"]
[BlackClock "0:01:20"]

1. d4 {[%clk 0:03:00]}  Nf6 {[%clk 0:02:59]} 2. c4 {[%clk 0:03:00]}  e6 {[%clk 0:02:58]} 3. Nf3 {[%clk 0:03:00]}  d5 {[%clk 0:02:57]} 4. Nc3 {[%clk 0:03:00]}  Nbd7 {[%clk 0:02:57]} 5. Bf4 {[%clk 0:02:52]}  dxc4 {[%clk 0:02:53]} 6. e3 {[%clk 0:02:51]}  Bd6 {[%clk 0:02:51]} 7. Bxd6 {[%clk 0:02:43]}  cxd6 {[%clk 0:02:52]} 8. Bxc4 {[%clk 0:02:44]}  O-O {[%clk 0:02:50]} 9. O-O {[%clk 0:02:41]}  Nb6 {[%clk 0:02:47]} 10. Bd3 {[%clk 0:02:38]}  Nbd5 {[%clk 0:02:43]} 11. Rc1 {[%clk 0:02:37]}  Bd7 {[%clk 0:02:35]} 12. Nxd5 {[%clk 0:02:35]}  Nxd5 {[%clk 0:02:36]} 13. Qb3 {[%clk 0:02:32]}  Bc6 {[%clk 0:02:33]} 14. Bb5 {[%clk 0:02:28]}  Bxb5 {[%clk 0:02:16]} 15. Qxb5 {[%clk 0:02:29]}  Rb8 {[%clk 0:02:14]} 16. Rc2 {[%clk 0:02:25]}  a6 {[%clk 0:02:11]} 17. Qb3 {[%clk 0:02:24]}  Qd7 {[%clk 0:02:08]} 18. Rfc1 {[%clk 0:02:24]}  Rfc8 {[%clk 0:02:07]} 19. h3 {[%clk 0:02:19]}  Ne7 {[%clk 0:02:00]} 20. Nd2 {[%clk 0:02:14]}  Rxc2 {[%clk 0:01:59]} 21. Rxc2 {[%clk 0:02:13]}  Rc8 {[%clk 0:01:50]} 22. Rxc8+ {[%clk 0:02:04]}  Nxc8 {[%clk 0:01:50]} 23. Qc4 {[%clk 0:02:05]}  Ne7 {[%clk 0:01:43]} 24. a3 {[%clk 0:02:01]}  Kf8 {[%clk 0:01:32]} 25. Kf1 {[%clk 0:02:00]}  Ke8 {[%clk 0:01:31]} 26. Ke2 {[%clk 0:01:58]}  d5 {[%clk 0:01:25]} 27. Qc5 {[%clk 0:01:46]}  Qc6 {[%clk 0:01:21]} 28. Qxc6+ {[%clk 0:01:44]}  Nxc6 {[%clk 0:01:20]} 29. Kd3 {[%clk 0:01:45]} 1/2-1/2


[Site "https://www.chess.com"]

[Event "Titled Tuesday Blitz July 13 2021"]
[White "Jarovinsky, Alexey"]
[Black "Golubev, Mikhail"]
[WhiteFideId "14115131"]
[BlackFideId "14100983"]
[WhiteElo "2446"]
[BlackElo "2374"]
[Result "1-0"]
[Round "07"]
[TimeControl "180+1"]
[Date "2021.07.13"]
[WhiteClock "0:00:08"]
[BlackClock "0:00:02"]

1. Nc3 {[%clk 0:03:00]}  e5 {[%clk 0:03:00]} 2. Nf3 {[%clk 0:03:00]}  Nc6 {[%clk 0:02:59]} 3. d4 {[%clk 0:03:00]}  exd4 {[%clk 0:02:58]} 4. Nxd4 {[%clk 0:03:01]}  Nf6 {[%clk 0:02:54]} 5. Bg5 {[%clk 0:03:00]}  Bc5 {[%clk 0:02:48]} 6. e3 {[%clk 0:02:55]}  O-O {[%clk 0:02:37]} 7. Be2 {[%clk 0:02:51]}  h6 {[%clk 0:02:21]} 8. Bh4 {[%clk 0:02:44]}  Nxd4 {[%clk 0:02:15]} 9. exd4 {[%clk 0:02:45]}  Be7 {[%clk 0:02:13]} 10. O-O {[%clk 0:02:42]}  d5 {[%clk 0:02:12]} 11. Bd3 {[%clk 0:02:29]}  Bg4 {[%clk 0:02:11]} 12. f3 {[%clk 0:02:25]}  Bh5 {[%clk 0:02:11]} 13. Ne2 {[%clk 0:02:16]}  Bg6 {[%clk 0:02:02]} 14. Nf4 {[%clk 0:02:10]}  Bxd3 {[%clk 0:01:57]} 15. Nxd3 {[%clk 0:02:11]}  Nd7 {[%clk 0:01:49]} 16. Bg3 {[%clk 0:02:05]}  c6 {[%clk 0:01:44]} 17. Re1 {[%clk 0:02:04]}  Bh4 {[%clk 0:01:35]} 18. Bxh4 {[%clk 0:02:01]}  Qxh4 {[%clk 0:01:35]} 19. c3 {[%clk 0:02:00]}  Rfe8 {[%clk 0:01:33]} 20. Qd2 {[%clk 0:01:54]}  Kf8 {[%clk 0:01:26]} 21. g3 {[%clk 0:01:52]}  Qg5 {[%clk 0:01:24]} 22. Qxg5 {[%clk 0:01:48]}  hxg5 {[%clk 0:01:24]} 23. Kf2 {[%clk 0:01:43]}  f6 {[%clk 0:01:20]} 24. Rxe8+ {[%clk 0:01:40]}  Rxe8 {[%clk 0:01:19]} 25. Rh1 {[%clk 0:01:41]}  Kf7 {[%clk 0:01:17]} 26. h4 {[%clk 0:01:41]}  gxh4 {[%clk 0:01:17]} 27. Rxh4 {[%clk 0:01:42]}  Nb6 {[%clk 0:01:16]} 28. b3 {[%clk 0:01:41]}  Nc8 {[%clk 0:01:16]} 29. a4 {[%clk 0:01:39]}  Nd6 {[%clk 0:01:04]} 30. g4 {[%clk 0:01:38]}  b6 {[%clk 0:00:52]} 31. Rh1 {[%clk 0:01:37]}  Re7 {[%clk 0:00:48]} 32. Rh8 {[%clk 0:01:30]}  Re8 {[%clk 0:00:48]} 33. Rh1 {[%clk 0:01:25]}  Re7 {[%clk 0:00:47]} 34. Nb4 {[%clk 0:01:25]}  Rc7 {[%clk 0:00:44]} 35. Rh8 {[%clk 0:01:19]}  Nb7 {[%clk 0:00:44]} 36. Na6 {[%clk 0:01:14]}  Re7 {[%clk 0:00:34]} 37. Rc8 {[%clk 0:01:11]}  Re6 {[%clk 0:00:26]} 38. Rc7+ {[%clk 0:01:09]}  Re7 {[%clk 0:00:24]} 39. Rc8 {[%clk 0:00:55]}  Re6 {[%clk 0:00:24]} 40. b4 {[%clk 0:00:50]}  Nd6 {[%clk 0:00:17]} 41. Rc7+ {[%clk 0:00:44]}  Kg6 {[%clk 0:00:17]} 42. Nb8 {[%clk 0:00:38]}  Nc4 {[%clk 0:00:16]} 43. Nxc6 {[%clk 0:00:34]}  Nb2 {[%clk 0:00:14]} 44. Ne7+ {[%clk 0:00:34]}  Kg5 {[%clk 0:00:14]} 45. Nxd5 {[%clk 0:00:31]}  Kh4 {[%clk 0:00:13]} 46. Nf4 {[%clk 0:00:27]}  Nd1+ {[%clk 0:00:12]} 47. Kg2 {[%clk 0:00:21]}  Re3 {[%clk 0:00:07]} 48. Rxg7 {[%clk 0:00:19]}  Rxc3 {[%clk 0:00:07]} 49. Rh7+ {[%clk 0:00:11]}  Kg5 {[%clk 0:00:07]} 50. Ne6+ {[%clk 0:00:09]}  Kg6 {[%clk 0:00:07]} 51. Rg7+ {[%clk 0:00:09]}  Kh6 {[%clk 0:00:07]} 52. Rxa7 {[%clk 0:00:09]}  Rc4 {[%clk 0:00:03]} 53. Nf8 {[%clk 0:00:08]}  Rxd4 {[%clk 0:00:02]} 54. Kg3 {[%clk 0:00:07]}  Rd3 {[%clk 0:00:01]} 55. Rh7+ {[%clk 0:00:07]}  Kg5 {[%clk 0:00:02]} 56. Rh5# {[%clk 0:00:08]} 1-0


[Site "https://www.chess.com"]

[Event "Titled Tuesday Blitz July 13 2021"]
[White "Khusnutdinov, Rustam"]
[Black "Iskusnyh, Sergei"]
[WhiteFideId "13701703"]
[BlackFideId "4120027"]
[WhiteElo "2571"]
[BlackElo "2492"]
[Result "1-0"]
[Round "07"]
[TimeControl "180+1"]
[Date "2021.07.13"]
[WhiteClock "0:00:17"]
[BlackClock "0:00:06"]

1. d4 {[%clk 0:03:00]}  d5 {[%clk 0:02:59]} 2. c4 {[%clk 0:02:55]}  e6 {[%clk 0:02:59]} 3. Nf3 {[%clk 0:02:55]}  dxc4 {[%clk 0:02:59]} 4. e3 {[%clk 0:02:53]}  Nf6 {[%clk 0:02:54]} 5. Bxc4 {[%clk 0:02:53]}  a6 {[%clk 0:02:54]} 6. O-O {[%clk 0:02:50]}  b5 {[%clk 0:02:54]} 7. Bd3 {[%clk 0:02:44]}  Bb7 {[%clk 0:02:53]} 8. Qe2 {[%clk 0:02:40]}  Nbd7 {[%clk 0:02:40]} 9. a4 {[%clk 0:02:39]}  b4 {[%clk 0:02:34]} 10. e4 {[%clk 0:02:38]}  c5 {[%clk 0:02:26]} 11. d5 {[%clk 0:02:31]}  e5 {[%clk 0:02:08]} 12. a5 {[%clk 0:02:21]}  Bd6 {[%clk 0:01:59]} 13. Nbd2 {[%clk 0:02:21]}  Nf8 {[%clk 0:01:55]} 14. Nc4 {[%clk 0:02:18]}  Ng6 {[%clk 0:01:55]} 15. g3 {[%clk 0:02:15]}  O-O {[%clk 0:01:54]} 16. b3 {[%clk 0:02:01]}  Bc8 {[%clk 0:01:41]} 17. Nfd2 {[%clk 0:02:00]}  Bh3 {[%clk 0:01:35]} 18. Rd1 {[%clk 0:01:58]}  Re8 {[%clk 0:01:34]} 19. Bb2 {[%clk 0:01:58]}  Bf8 {[%clk 0:01:31]} 20. Nb6 {[%clk 0:01:52]}  Ra7 {[%clk 0:01:28]} 21. Bxa6 {[%clk 0:01:51]}  h5 {[%clk 0:01:01]} 22. Bb5 {[%clk 0:01:51]}  Ree7 {[%clk 0:00:57]} 23. Ndc4 {[%clk 0:01:50]}  h4 {[%clk 0:00:44]} 24. d6 {[%clk 0:01:50]}  Re6 {[%clk 0:00:44]} 25. d7 {[%clk 0:01:33]}  Bg4 {[%clk 0:00:37]} 26. f3 {[%clk 0:01:32]}  Bh3 {[%clk 0:00:37]} 27. Rd2 {[%clk 0:01:27]}  Nh5 {[%clk 0:00:36]} 28. Qf2 {[%clk 0:01:17]}  hxg3 {[%clk 0:00:31]} 29. hxg3 {[%clk 0:01:18]}  Ngf4 {[%clk 0:00:31]} 30. Bxe5 {[%clk 0:01:06]}  Rg6 {[%clk 0:00:29]} 31. Bxf4 {[%clk 0:00:47]}  Nxf4 {[%clk 0:00:28]} 32. Qh2 {[%clk 0:00:47]}  Qh4 {[%clk 0:00:19]} 33. d8=Q {[%clk 0:00:38]}  Rxg3+ {[%clk 0:00:18]} 34. Kh1 {[%clk 0:00:33]}  Rg5 {[%clk 0:00:16]} 35. Qxg5 {[%clk 0:00:19]}  Qxg5 {[%clk 0:00:14]} 36. Rg1 {[%clk 0:00:19]}  Qh5 {[%clk 0:00:13]} 37. Rg3 {[%clk 0:00:18]}  Be7 {[%clk 0:00:07]} 38. Rxh3 {[%clk 0:00:16]}  Nxh3 {[%clk 0:00:06]} 39. Kg2 {[%clk 0:00:17]} 1-0


[Site "https://www.chess.com"]

[Event "Titled Tuesday Blitz July 13 2021"]
[White "Kubatko, Ivan"]
[Black "Kavyev, Ruslan"]
[WhiteFideId "24111473"]
[BlackFideId "34110981"]
[WhiteElo "2285"]
[BlackElo "2172"]
[Result "0-1"]
[Round "07"]
[TimeControl "180+1"]
[Date "2021.07.13"]
[WhiteClock "0:00:20"]
[BlackClock "0:01:41"]

1. e4 {[%clk 0:03:00]}  c5 {[%clk 0:02:59]} 2. c3 {[%clk 0:02:59]}  Nf6 {[%clk 0:02:58]} 3. e5 {[%clk 0:02:58]}  Nd5 {[%clk 0:02:58]} 4. d4 {[%clk 0:02:58]}  cxd4 {[%clk 0:02:59]} 5. cxd4 {[%clk 0:02:58]}  d6 {[%clk 0:02:58]} 6. Nf3 {[%clk 0:02:58]}  Nc6 {[%clk 0:02:58]} 7. Bc4 {[%clk 0:02:57]}  dxe5 {[%clk 0:02:59]} 8. dxe5 {[%clk 0:02:56]}  Ndb4 {[%clk 0:02:59]} 9. Qe2 {[%clk 0:02:37]}  Bg4 {[%clk 0:02:33]} 10. O-O {[%clk 0:01:25]}  Nd4 {[%clk 0:02:31]} 11. Bxf7+ {[%clk 0:01:19]}  Kxf7 {[%clk 0:02:14]} 12. Ng5+ {[%clk 0:01:19]}  Kg8 {[%clk 0:02:14]} 13. Qxg4 {[%clk 0:01:19]}  Nbc2 {[%clk 0:02:00]} 14. Rd1 {[%clk 0:00:49]}  h6 {[%clk 0:01:44]} 15. Nf3 {[%clk 0:00:20]}  Ne2+ {[%clk 0:01:41]} 0-1


[Site "https://www.chess.com"]